bitfinex-derivatives/quotes_SOLF0:USTF0_20250803
["timestamp","ask_amount","ask_price","bid_price","bid_amount"]
[1754232444677,3.44,160.94,160.9,6.215]
[1754232445180,3.44,160.93,160.92,3.36]
[1754232445370,6.29473316,160.99,160.9,6.29473316]
[1754232445675,3.44,160.94,160.93,3.36]
[1754232446272,3.44,160.94,160.92,6.214]
[1754232446476,3.44,160.93,160.92,9.574]
[1754232446869,6.2131,160.96,160.91,9.5746]
[1754232447069,3.44,160.92,160.91,9.5746]
[1754232448372,3.44,160.96,160.92,9.574]
[1754232448770,6.29473316,160.99,160.9,6.29473316]
[1754232448967,3.44,160.95,160.94,3.36]
[1754232449172,3.44,160.95,160.94,9.5735]
[1754232449370,3.44,160.99,160.94,3.36]
[1754232449572,3.44,160.99,160.95,3.36]
[1754232449778,3.44,160.99,160.95,9.5729]
[1754232450081,3.44,160.99,160.85,114.94]
[1754232450082,3.44,161.04,160.97,3.36]
[1754232450572,6.2107,161.02,160.97,3.36]
[1754232450874,3.44,161.01,160.98,3.36]
[1754232451074,6.29473316,161.05,160.98,3.36]
[1754232451075,3.44,161.04,160.98,3.36]
[1754232451679,3.44,161.04,160.99,9.5716]
[1754232451979,3.44,161.04,160.99,3.36]
[1754232452180,9.6499,161.04,160.99,9.5714]
[1754232452376,3.44,161.03,160.99,9.5714]
[1754232453074,3.44,161.02,160.99,9.5714]
[1754232454383,3.44,161.04,160.97,3.36]
[1754232454883,3.44,161.02,160.94,6.29473316]
[1754232455280,3.44,161.02,160.95,3.36]
[1754232455579,3.44,161.02,160.96,9.5726]
[1754232455780,3.44,160.99,160.96,9.5726]
[1754232456585,3.44,160.99,160.97,6.2123]
[1754232457179,3.44,160.99,160.96,9.5727]
[1754232457582,3.44,160.98,160.87,3.36]
[1754232457892,3.44,160.96,160.88,6.29473316]
[1754232458081,3.44,160.92,160.86,9.65473316]
[1754232458287,3.44,160.92,160.86,3.36]
[1754232458683,3.44,160.91,160.87,3.36]
[1754232459279,3.44,160.9,160.89,3.36]
[1754232460179,3.44,160.96,160.89,3.36]
[1754232461176,9.653,160.96,160.91,6.2144]
[1754232461487,3.44,160.95,160.91,9.5744]
[1754232461689,9.6532,160.95,160.9,6.2149]
[1754232461986,3.44,160.94,160.9,6.2149]
[1754232462884,9.6537,160.94,160.89,3.36]
[1754232463082,3.44,160.92,160.87,3.36]
[1754232463885,3.44,160.92,160.89,6.2153]
[1754232464588,3.44,160.92,160.9,6.215]
[1754232464786,12.50833316,160.94,160.9,9.635]
[1754232464990,3.53,160.91,160.9,3.42]
[1754232465789,3.53,160.91,160.89,9.6354]
[1754232466087,3.53,160.9,160.89,9.6354]
[1754232466288,3.53,160.9,160.89,6.2154]
[1754232466978,3.53,160.9,160.89,9.6354]
[1754232467378,3.53,160.9,160.84,3.42]
[1754232467586,3.53,160.9,160.86,6.29473316]
[1754232467784,3.53,160.9,160.87,3.42]
[1754232467989,3.53,160.9,160.88,9.6356]
[1754232468691,3.53,160.93,160.88,9.6356]
[1754232469397,3.53,160.91,160.88,9.6356]
[1754232469590,3.53,160.9,160.88,3.42]
[1754232469781,3.53,160.89,160.88,3.42]
[1754232470584,6.214,160.93,160.88,9.6359]
[1754232470784,6.94233567,160.99,160.86,6.29473316]
[1754232470785,3.53,160.91,160.89,3.42]
[1754232470985,3.53,160.91,160.9,3.42]
[1754232471292,3.53,160.95,160.87,3.42]
[1754232471593,3.53,160.93,160.87,3.42]
[1754232471889,3.53,160.92,160.89,3.42]
[1754232472485,3.53,160.91,160.84,6.29473316]
[1754232472685,3.53,160.91,160.83,421.16]
[1754232472880,3.53,160.91,160.84,3.42]
[1754232473086,3.53,160.89,160.84,3.42]
[1754232473393,3.53,160.89,160.85,3.42]
[1754232473593,3.53,160.88,160.85,6.2167]
[1754232474388,6.29473316,160.94,160.84,6.29473316]
[1754232474586,3.53,160.89,160.88,3.42]
[1754232474789,3.53,160.93,160.86,6.29473316]
[1754232474994,3.53,160.91,160.89,3.42]
[1754232475292,6.2141,160.93,160.87,3.42]
[1754232475490,3.53,160.91,160.88,3.42]
[1754232475691,3.53,160.91,160.86,9.71473316]
[1754232475884,3.53,160.91,160.87,3.42]
[1754232477090,3.53,160.9,160.88,3.42]
[1754232477493,3.53,160.9,160.88,9.6355]
[1754232477693,3.53,160.9,160.89,3.42]
[1754232479197,3.53,160.9,160.89,9.6355]
[1754232480886,6.94233567,160.98,160.86,6.29473316]
[1754232481093,3.53,160.96,160.91,3.42]
[1754232481394,3.53,160.94,160.9,6.29473316]
[1754232481595,3.53,161.0,160.93,3.42]
[1754232481794,3.53,160.98,160.93,3.42]
[1754232481999,3.53,160.96,160.94,6.2132]
[1754232482200,3.53,160.96,160.94,9.6332]
[1754232482500,3.53,160.96,160.95,3.42]
[1754232482698,3.53,160.96,160.94,6.29473316]
[1754232482699,3.53,160.99,160.96,6.2127]
[1754232482889,2.84581543,160.98,160.94,9.71473316]
[1754232483097,3.53,160.96,160.95,3.42]
[1754232483495,3.53,160.96,160.94,6.29473316]
[1754232483695,3.53,160.95,160.94,6.29473316]
[1754232483896,3.53,160.95,160.94,12.50813316]
[1754232485004,3.53,160.95,160.94,15.92813316]
[1754232485999,6.2119,160.99,160.95,6.2131]
[1754232486196,3.53,160.97,160.95,9.6331]
[1754232486694,3.53,160.98,160.9,6.29473316]
[1754232486892,3.53,160.98,160.97,3.42]
[1754232487092,2.8476793,160.98,160.97,3.42]
[1754232487302,2.8476793,160.98,160.96,9.6327]
[1754232487503,3.53,160.97,160.96,9.6327]
[1754232488593,3.53,160.97,160.86,6.96841534]
[1754232488594,6.37720184,160.97,160.93,9.71473316]
[1754232488792,3.53,160.96,160.93,9.71473316]
[1754232489203,3.53,160.96,160.93,15.92853316]
[1754232490204,3.53,160.96,160.93,12.50853316]
[1754232490400,3.53,160.96,160.93,6.29473316]
[1754232491200,3.53,160.96,160.93,15.92843316]
[1754232491401,3.53,160.96,160.93,6.29473316]
[1754232491600,3.53,160.96,160.95,3.42]
[1754232491802,3.53,160.96,160.93,6.29473316]
[1754232492104,3.53,160.95,160.94,3.42]
[1754232492306,3.53,160.95,160.94,9.6335]
[1754232493407,6.212,160.98,160.94,9.6335]
[1754232493594,3.48,160.96,160.94,9.6335]
[1754232493797,3.48,160.96,160.94,9.6235]
[1754232494202,3.48,160.96,160.94,6.2135]
[1754232494400,137.30061401,161.03,160.95,3.41]
[1754232494602,3.48,160.99,160.98,3.41]
[1754232494798,6.32865299,160.99,160.98,3.41]
[1754232496604,6.32865299,160.99,160.97,12.50703316]
[1754232496809,3.48,160.98,160.97,15.91703316]
[1754232497908,3.48,161.02,160.98,3.41]
[1754232498108,3.48,161.0,160.97,6.29473316]
[1754232498505,3.48,161.0,160.99,3.41]
[1754232499106,3.48,161.0,160.99,9.6216]
[1754232499615,3.48,161.0,160.99,15.91633316]
[1754232499816,3.48,161.02,161.0,9.6212]
[1754232500018,115.16,161.08,161.01,6.29473316]
[1754232500317,3.48,161.06,161.03,3.41]
[1754232500513,21.39959922,161.11,161.04,3.41]
[1754232500514,2.85028346,161.05,161.04,3.41]
[1754232500714,2.84982993,161.05,161.04,3.41]
[1754232500920,2.84982993,161.05,161.04,9.6197]
[1754232501218,6.32982993,161.05,161.03,6.29473316]
[1754232501418,3.48,161.04,161.03,9.70473316]
[1754232501809,6.32833976,161.04,161.0,6.2109]
[1754232502013,3.48,161.03,161.0,6.2109]
[1754232502409,3.48,161.03,160.99,12.50623316]
[1754232502611,3.48,161.03,160.99,15.91623316]
[1754232502821,3.48,161.03,160.99,9.70473316]
[1754232503021,3.48,161.03,160.99,6.29473316]
[1754232503221,3.48,161.03,160.98,6.212]
[1754232503722,9.6903,161.03,160.98,6.212]
[1754232504018,3.48,161.02,160.98,6.212]
[1754232504324,3.48,161.01,160.98,9.622]
[1754232504821,3.48,161.05,160.98,9.622]
[1754232505018,3.48,161.03,160.98,9.622]
[1754232505223,2.84681037,161.02,160.98,9.622]
[1754232505425,3.48,161.0,160.98,9.622]
[1754232505916,10.4135035,161.1,160.96,114.96]
[1754232505917,6.94233567,161.12,160.99,6.29473316]
[1754232506123,2.84660257,161.1,161.04,6.29473316]
[1754232506325,3.48,161.05,161.04,6.29473316]
[1754232506525,6.29473316,161.12,161.04,15.91413316]
[1754232506721,6.32639608,161.1,161.04,15.91413316]
[1754232506918,9.05439608,161.09,161.05,3.41]
[1754232507120,2.84639608,161.08,161.05,3.41]
[1754232507427,2.84639608,161.07,161.04,15.91433316]
[1754232507627,3.48,161.05,161.04,15.91433316]
[1754232508026,3.48,161.05,161.04,12.50433316]
[1754232508319,3.48,161.05,161.04,6.29473316]
[1754232508521,6.2083,161.08,161.03,6.21]
[1754232508820,3.48,161.04,161.03,6.21]
[1754232509219,3.48,161.04,161.03,9.62]
[1754232510036,6.2083,161.08,161.03,9.62]
[1754232510225,3.48,161.05,161.03,9.62]
[1754232510629,3.48,161.04,161.02,6.29473316]
[1754232510924,3.48,161.04,161.03,3.41]
[1754232511425,6.2083,161.08,161.04,6.2095]
[1754232511628,3.48,161.07,161.04,9.6195]
[1754232511825,3.48,161.11,161.07,3.41]
[1754232512027,3.48,161.09,161.08,3.41]
[1754232513032,3.48,161.09,161.06,6.29473316]
[1754232513327,3.48,161.1,161.06,9.70473316]
[1754232514329,3.48,161.1,161.06,15.91353316]
[1754232514632,3.48,161.09,161.05,3.41]
[1754232515634,3.48,161.09,161.05,9.619]
[1754232516829,6.2078,161.09,161.04,12.50433316]
[1754232517026,3.48,161.08,161.04,12.50433316]
[1754232517329,9.6884,161.08,161.04,6.29473316]
[1754232517538,3.48,161.07,161.04,6.29473316]
[1754232518029,3.48,161.07,161.04,12.50413316]
[1754232519736,3.48,161.07,161.05,6.2093]
[1754232519941,3.48,161.11,161.04,6.29473316]
[1754232520134,3.48,161.09,161.05,3.41]
[1754232520434,3.48,161.09,161.07,6.2085]
[1754232520735,6.29473316,161.12,161.07,6.2085]
[1754232520736,3.48,161.13,161.07,3.41]
[1754232520936,136.58134915,161.14,161.08,6.29473316]
[1754232520937,2.84092081,161.12,161.08,6.29473316]
[1754232521138,3.48,161.12,161.11,3.41]
[1754232521733,136.58134915,161.14,161.12,3.41]
[1754232521937,3.48,161.13,161.1,9.70473316]
[1754232522136,3.48,161.12,161.1,9.70473316]
[1754232522440,136.58134915,161.14,161.12,3.41]
[1754232522638,140.06134915,161.14,161.12,3.41]
[1754232522936,3.48,161.13,161.11,6.2069]
[1754232523139,3.48,161.12,161.11,6.2069]
[1754232523340,3.48,161.12,161.11,9.6169]
[1754232523540,139.91134915,161.14,161.11,9.6169]
[1754232523740,3.33,161.13,161.11,9.6169]
[1754232524235,136.58134915,161.14,161.11,9.6169]
[1754232524440,3.33,161.13,161.08,3.38]
[1754232524640,3.33,161.13,161.09,9.67473316]
[1754232524841,9.5362,161.13,161.09,15.88223316]
[1754232525036,3.33,161.12,161.09,6.2075]
[1754232525233,3.33,161.12,161.07,6.29473316]
[1754232525439,3.33,161.12,161.08,3.38]
[1754232526342,6.2069,161.12,161.08,9.5881]
[1754232526541,3.33,161.1,161.08,9.5881]
[1754232528743,6.2063,161.13,161.08,9.5881]
[1754232528941,3.33,161.11,161.07,6.29473316]
[1754232529147,3.33,161.11,161.07,9.67473316]
[1754232529348,6.2073,161.11,161.06,6.2089]
[1754232529551,3.33,161.1,161.06,6.2089]
[1754232529747,3.33,161.1,161.06,9.5889]
[1754232529947,3.33,161.09,161.05,15.88393316]
[1754232530340,3.33,161.09,161.05,9.67473316]
[1754232530540,3.33,161.09,161.05,6.2092]
[1754232530941,3.33,161.09,161.08,9.5881]
[1754232531143,3.33,161.09,161.08,3.38]
[1754232531551,3.33,161.08,161.07,9.5884]
[1754232532044,3.33,161.08,161.05,6.29473316]
[1754232532045,3.33,161.06,161.05,12.50393316]
[1754232532248,6.29473316,161.13,161.05,6.29473316]
[1754232532549,3.33,161.07,161.06,3.38]
[1754232533243,3.33,161.07,161.06,9.5886]
[1754232535245,6.29473316,161.13,161.05,12.50393316]
[1754232535453,3.33,161.06,161.05,12.50393316]
[1754232535753,3.33,161.06,161.05,15.88393316]
[1754232537047,3.33,161.07,161.06,9.5886]
[1754232538152,136.58134915,161.14,161.06,3.38]
[1754232538357,3.33,161.11,161.07,6.29473316]
[1754232538651,3.33,161.1,161.09,3.38]
[1754232538846,136.58134915,161.14,161.09,3.38]
[1754232539050,3.33,161.11,161.1,3.38]
[1754232540251,3.33,161.11,161.1,9.5871]
[1754232540452,136.58134915,161.14,161.08,6.29473316]
[1754232540655,3.33,161.1,161.09,3.38]
[1754232540954,3.33,161.09,161.04,3.38]
[1754232541246,2.8456678,161.08,161.02,9.67473316]
[1754232541557,3.33,161.1,161.02,9.67473316]
[1754232541755,3.33,161.08,161.04,6.2094]
[1754232542847,3.33,161.08,161.05,6.2093]
[1754232543148,3.33,161.09,161.03,3.38]
[1754232543444,3.33,161.07,161.05,6.2093]
[1754232543850,6.2075,161.1,161.05,6.2093]
[1754232544043,3.33,161.06,161.05,6.2093]
[1754232545042,3.33,161.06,161.05,9.5893]
[1754232547249,3.33,161.06,161.05,6.2093]
[1754232547846,3.33,161.06,161.05,9.5893]
[1754232548656,3.33,161.06,161.05,6.2093]
[1754232549261,3.33,161.06,161.04,6.2096]
[1754232549561,3.33,161.05,161.04,9.5896]
[1754232553061,3.33,161.05,161.02,6.2101]
[1754232553062,6.18508218,161.05,161.02,6.2101]
[1754232553263,2.85549001,161.04,161.02,6.2101]
[1754232553456,3.33,161.03,161.02,6.2101]
[1754232555166,3.33,161.03,161.02,9.4801]
[1754232557663,3.49,161.05,161.03,6.2098]
[1754232557965,6.2083,161.08,161.03,6.2098]
[1754232557966,6.34901799,161.04,161.03,9.4798]
[1754232559062,6.34901799,161.04,161.03,6.2098]
[1754232559761,6.34901799,161.04,161.03,9.4798]
[1754232560059,6.29473316,161.1,161.03,3.27]
[1754232560260,3.49,161.05,161.03,3.27]
[1754232560462,3.49,161.04,161.03,3.27]
[1754232560661,6.34712036,161.04,161.03,3.27]
[1754232561168,6.34712036,161.04,161.03,6.2101]
[1754232561368,3.49,161.04,161.03,6.2101]
[1754232561873,6.34667277,161.04,161.03,6.2101]
[1754232562063,3.49,161.04,161.03,6.2101]
[1754232563372,6.34608559,161.04,161.03,6.2101]
[1754232564873,6.34608559,161.04,161.03,9.4801]
[1754232565368,3.49,161.04,161.03,9.4801]
[1754232565574,3.49,161.07,161.03,3.27]
[1754232565877,3.49,161.05,161.03,3.27]
[1754232566273,3.49,161.05,161.04,3.27]
[1754232566778,3.39,161.05,161.04,3.27]
[1754232567377,6.24625681,161.05,161.04,9.4797]
[1754232572080,6.24625681,161.05,161.04,6.2097]
[1754232573985,6.24625681,161.05,161.04,9.4797]
[1754232574275,10.4135035,161.13,161.03,6.29473316]
[1754232574276,3.49,161.07,161.06,9.4789]
[1754232574470,3.49,161.12,161.06,6.29473316]
[1754232574669,2.86292593,161.11,161.09,6.2077]
[1754232574873,2.86292593,161.1,161.09,6.2077]
[1754232575268,6.35292593,161.1,161.09,6.2077]
[1754232575682,3.49,161.09,161.08,15.77273316]
[1754232575981,6.35292593,161.09,161.08,15.77273316]
[1754232576784,6.35292593,161.09,161.08,12.50273316]
[1754232577482,6.35292593,161.09,161.08,6.29473316]
[1754232579283,3.49,161.08,161.07,9.4785]
[1754232579477,6.35292593,161.08,161.07,9.4785]
[1754232579883,3.49,161.08,161.07,9.4785]
[1754232580769,6.2063,161.13,161.09,6.2077]
[1754232580971,2.86165001,161.12,161.11,3.27]
[1754232581180,6.35165001,161.12,161.11,3.27]
[1754232581688,6.35165001,161.12,161.1,12.50183316]
[1754232581884,6.35165001,161.11,161.1,15.77183316]
[1754232582085,6.35165001,161.11,161.1,9.56473316]
[1754232583195,6.35165001,161.11,161.1,12.50213316]
[1754232583594,6.34996372,161.11,161.1,12.50213316]
[1754232591594,3.21,161.1,161.08,6.29473316]
[1754232592294,3.21,161.1,161.08,6.2081]
[1754232592492,2.85434358,161.09,161.06,120.75473316]
[1754232592792,3.21,161.08,161.07,12.50323316]
[1754232593099,3.21,161.12,161.08,3.5]
[1754232593301,3.21,161.1,161.08,3.5]
[1754232593494,6.06485974,161.09,161.08,9.7081]
[1754232593798,3.21,161.11,161.08,3.5]
[1754232594100,3.21,161.11,161.1,3.5]
[1754232595304,3.21,161.11,161.1,9.7072]
[1754232595904,3.21,161.11,161.1,6.2072]
[1754232596102,6.06455671,161.11,161.1,6.2072]
[1754232599894,3.21,161.11,161.1,6.2072]
[1754232600299,136.58134915,161.14,161.1,3.5]
[1754232600599,3.21,161.14,161.13,16.00093316]
[1754232600808,6.06572536,161.14,161.13,12.50093316]
[1754232601704,6.06572536,161.14,161.13,6.2062]
[1754232609109,6.06572536,161.14,161.13,9.7062]
[1754232611904,6.06539198,161.14,161.13,6.2062]
[1754232616109,6.06539198,161.14,161.13,6.1062]
[1754232616411,6.06539198,161.14,161.13,9.5562]
[1754232617610,6.06539198,161.14,161.13,6.1062]
[1754232622620,6.06539198,161.14,161.12,6.2065]
[1754232622920,3.48,161.12,161.1,6.29473316]
[1754232623111,6.33539198,161.11,161.1,6.29473316]
[1754232623308,6.33985727,161.11,161.1,15.95213316]
[1754232624216,3.48,161.13,161.12,6.2066]
[1754232624416,6.34049669,161.13,161.12,9.6566]
[1754232625511,6.34049669,161.13,161.12,6.2066]
[1754232627830,6.34049669,161.13,161.12,9.6566]
[1754232628829,2.86049669,161.13,161.12,9.6566]
[1754232629123,3.48,161.17,161.13,3.45]
[1754232629426,3.48,161.19,161.13,3.45]
[1754232629628,3.48,161.19,161.14,6.2055]
[1754232629821,3.48,161.19,161.13,3.45]
[1754232630216,3.48,161.19,161.13,6.2062]
[1754232630418,3.48,161.17,161.12,6.29473316]
[1754232630825,3.48,161.17,161.11,3.45]
[1754232631128,3.48,161.14,161.09,3.45]
[1754232631321,3.48,161.14,161.1,9.6572]
[1754232631518,3.48,161.14,161.1,3.45]
[1754232631917,3.48,161.14,161.11,9.6566]
[1754232632122,3.48,161.14,161.11,3.45]
[1754232632325,3.48,161.14,161.1,6.29473316]
[1754232632527,3.48,161.14,161.1,9.74473316]
[1754232632822,3.48,161.14,161.11,6.2069]
[1754232633719,3.48,161.14,161.1,9.74473316]
[1754232633926,3.48,161.14,161.12,6.2066]
[1754232634725,3.48,161.14,161.11,6.2069]
[1754232635229,9.6859,161.14,161.11,6.2069]
[1754232635429,6.2059,161.14,161.11,6.2069]
[1754232635623,3.48,161.13,161.11,6.2069]
[1754232636129,3.48,161.13,161.08,3.45]
[1754232636728,6.2066,161.12,161.08,9.6578]
[1754232637226,3.48,161.11,161.08,9.6578]
[1754232637832,3.48,161.1,161.07,6.2084]
[1754232638330,3.48,161.1,161.08,3.45]
[1754232641231,3.48,161.08,161.04,3.45]
[1754232642329,3.48,161.08,161.03,117.77]
[1754232643133,6.2088,161.07,161.03,123.98]
[1754232643333,3.48,161.06,161.03,123.98]
[1754232644136,3.48,161.06,161.03,117.77]
[1754232644137,9.689,161.06,161.03,117.77]
[1754232644435,3.49,161.05,161.03,117.77]
[1754232644832,3.49,161.05,161.03,123.9801]
[1754232645134,3.49,161.05,161.03,117.77]
[1754232645530,3.49,161.05,161.03,3.45]
[1754232646336,3.49,161.05,161.03,9.66]
[1754232647138,3.49,161.04,161.03,9.66]
[1754232648539,3.49,161.04,161.03,3.45]
[1754232648734,6.29473316,161.09,161.0,423.39473316]
[1754232648735,6.2097,161.05,161.0,423.39473316]
[1754232648938,3.49,161.03,161.0,417.1]
[1754232649134,3.49,161.03,161.0,3.52]
[1754232649445,3.49,161.01,160.99,114.32]
[1754232649633,3.49,161.01,160.98,3.52]
[1754232650736,3.49,161.0,160.95,209.70483361]
[1754232650942,3.49,161.0,160.98,3.52]
[1754232651838,3.49,160.99,160.98,9.7319]
[1754232652537,6.2101,161.03,160.98,9.7319]
[1754232652538,6.2101,161.03,160.99,6.2116]
[1754232652840,3.49,161.01,160.99,9.7316]
[1754232653247,3.49,161.01,160.99,3.52]
[1754232653448,3.49,161.0,160.99,3.52]
[1754232653638,3.49,161.02,160.96,6.29473316]
[1754232653846,3.49,161.06,161.01,3.52]
[1754232654044,9.699,161.06,161.01,3.52]
[1754232654245,3.49,161.05,161.01,3.52]
[1754232654956,3.49,161.05,160.98,6.29473316]
[1754232654957,6.2083,161.08,161.03,6.2098]
[1754232655252,6.29473316,161.09,161.01,3.52]
[1754232655441,3.49,161.04,161.01,3.52]
[1754232655844,6.29473316,161.09,161.01,3.52]
[1754232656148,3.49,161.03,161.01,3.52]
[1754232656345,3.49,161.03,161.02,9.7303]
[1754232657252,3.49,161.03,161.0,117.86]
[1754232657653,3.49,161.03,161.01,3.52]
[1754232658349,3.49,161.06,161.02,3.52]
[1754232658652,3.49,161.05,161.03,9.73]
[1754232658950,3.49,161.04,161.03,9.73]
[1754232659661,3.49,161.05,161.04,9.7296]
[1754232659844,6.94233567,161.14,161.05,3.52]
[1754232659845,3.49,161.07,161.05,3.52]
[1754232660348,3.49,161.07,161.04,6.2096]
[1754232660554,3.49,161.07,161.04,9.7296]
[1754232660956,3.49,161.09,161.03,6.2099]
[1754232661350,6.2088,161.07,161.03,6.2099]
[1754232661549,3.49,161.09,161.05,3.52]
[1754232661854,6.2082,161.08,161.05,3.52]
[1754232662053,3.49,161.07,161.05,3.52]
[1754232662756,3.49,161.06,161.04,9.7296]
[1754232662952,3.49,161.06,161.04,6.2096]
[1754232664156,3.49,161.06,161.04,9.7296]
[1754232664452,6.2085,161.07,161.04,9.7296]
[1754232664652,3.49,161.05,161.04,9.7296]
[1754232665451,3.49,161.06,161.05,9.7292]
[1754232665654,3.49,161.06,161.05,3.52]
[1754232666759,3.49,161.06,161.04,3.52]
[1754232668060,6.2086,161.07,161.04,3.52]
[1754232668254,3.49,161.05,161.04,3.52]
[1754232672759,3.49,161.05,161.03,6.2099]
[1754232672965,3.49,161.04,161.03,9.7299]
[1754232675867,3.49,161.04,161.03,3.52]
[1754232676655,3.49,161.04,161.01,12.50553316]
[1754232676865,3.49,161.04,161.02,3.31]
[1754232677364,3.49,161.04,161.02,9.5202]
[1754232678764,3.49,161.04,161.03,6.2101]
[1754232679065,3.49,161.04,161.03,9.5201]
[1754232679468,6.2086,161.07,161.04,3.31]
[1754232679469,3.38,161.06,161.04,3.31]
[1754232680860,3.38,161.06,161.03,9.5201]
[1754232683875,3.38,161.06,161.05,3.31]
[1754232684376,3.38,161.06,161.04,9.5197]
[1754232684674,3.38,161.06,161.04,6.2097]
[1754232684871,3.38,161.06,161.03,6.2099]
[1754232685071,9.5891,161.06,161.02,3.31]
[1754232685272,3.38,161.05,161.01,9.60473316]
[1754232685470,3.38,161.05,161.02,6.2102]
[1754232685670,3.38,161.05,161.02,9.5202]
[1754232685867,3.38,161.05,161.02,3.31]
[1754232687374,3.38,161.05,161.03,6.2101]
[1754232688673,3.38,161.05,161.03,9.5201]
[1754232690778,3.38,161.05,161.03,3.31]
[1754232690977,3.38,161.05,161.02,9.5204]
[1754232692082,3.38,161.05,161.03,9.52]
[1754232694082,3.38,161.05,161.03,3.31]
[1754232694284,3.38,161.04,161.03,3.31]
[1754232694781,3.38,161.04,161.02,6.2103]
[1754232694975,3.38,161.04,161.02,9.5203]
[1754232695583,3.38,161.03,161.02,6.2103]
[1754232696276,6.2086,161.07,161.02,9.5203]
[1754232696472,3.38,161.04,161.03,3.31]
[1754232696677,3.38,161.07,161.04,3.31]
[1754232696883,3.38,161.07,161.0,114.3]
[1754232696884,3.38,161.07,161.06,7.33885721]
[1754232697078,10.97119288,161.13,161.07,9.5185]
[1754232697280,6.94233567,161.14,161.11,4.02885721]
[1754232697579,6.94233567,161.14,161.11,7.33885721]
[1754232697776,10.97119288,161.15,161.12,3.31]
[1754232697977,3.38,161.14,161.12,3.31]
[1754232698180,3.38,161.14,161.13,7.33885721]
[1754232700679,3.38,161.14,161.13,3.31]
[1754232701585,3.38,161.17,161.13,6.2062]
[1754232701784,3.38,161.17,161.14,3.31]
[1754232703181,3.38,161.15,161.14,3.31]
[1754232704986,137.42324877,161.22,161.14,6.28926165]
[1754232704987,144.36558444,161.22,161.14,6.28926165]
[1754232705185,3.38,161.21,161.16,6.28926165]
[1754232705486,137.42324877,161.22,161.1,6.28926165]
[1754232705487,137.42324877,161.22,161.2,15.72276165]
[1754232705790,140.80324877,161.22,161.21,3.23]
[1754232706287,3.38,161.25,161.21,6.2031]
[1754232706481,3.38,161.25,161.22,9.51926165]
[1754232707276,3.38,161.24,161.23,3.23]
[1754232708376,3.38,161.24,161.22,6.28926165]
[1754232708580,3.38,161.23,161.22,9.51926165]
[1754232709088,3.38,161.24,161.23,3.23]
[1754232710380,142.99428664,161.31,161.23,3.23]
[1754232710578,3.38,161.3,161.24,6.28926165]
[1754232710784,3.38,161.3,161.24,9.51926165]
[1754232710980,136.70502499,161.31,161.26,6.28926165]
[1754232711186,3.38,161.27,161.26,9.51926165]
[1754232711792,3.38,161.3,161.27,3.23]
[1754232712185,6.1997,161.3,161.26,6.28926165]
[1754232712494,3.38,161.29,161.26,6.28926165]
[1754232712894,3.38,161.29,161.27,3.23]
[1754232713189,136.70502499,161.31,161.28,9.51926165]